fUST/lending_fUST_20250727
["ID","MTS","AMOUNT","RATE_DAILY","PERIOD"]
[375297130,1753619489976,-460.0,0.00021917,2]
[375297131,1753619489985,-460.0,0.00021917,2]
[375297132,1753619489995,-603.71,0.00021917,2]
[375297133,1753619490005,-534.47,0.00021917,2]
[375297134,1753619490015,-752.16,0.00021917,2]
[375297135,1753619490024,-460.0,0.00021917,2]
[375297136,1753619490035,-460.0,0.00021917,2]
[375297137,1753619490044,-460.0,0.00021917,2]
[375297138,1753619490054,-460.0,0.00021917,2]
[375297139,1753619490064,-4106.11,0.00021917,2]
[375297140,1753619490074,-460.0,0.00021917,2]
[375297141,1753619490084,-460.0,0.00021917,2]
[375297142,1753619490093,-509.31,0.00021917,2]
[375297143,1753619490103,-460.0,0.00021917,2]
[375297144,1753619490113,-460.0,0.00021917,2]
[375297145,1753619490124,-1164.72,0.00021917,2]
[375297146,1753619490134,-460.0,0.00021917,2]
[375297147,1753619490143,-460.0,0.00021917,2]
[375297148,1753619490153,-460.0,0.00021917,2]
[375297149,1753619490163,-911.34,0.00021917,2]
[375297150,1753619490173,-770.95,0.00021917,2]
[375297151,1753619490183,-802.67,0.00021917,2]
[375297152,1753619490193,-460.0,0.00021917,2]
[375297153,1753619490204,-460.0,0.00021917,2]
[375297154,1753619490214,-460.0,0.00021917,2]
[375297155,1753619490224,-577.86,0.00021917,2]
[375297156,1753619490234,-460.0,0.00021917,2]
[375297157,1753619490244,-460.0,0.00021917,2]
[375297158,1753619490253,-460.0,0.00021917,2]
[375297159,1753619490262,-620.79,0.00021917,2]
[375297160,1753619490272,-460.0,0.00021917,2]
[375297161,1753619490282,-460.0,0.00021917,2]
[375297162,1753619490292,-460.0,0.00021917,2]
[375297163,1753619490306,-712.03,0.00021917,2]
[375297164,1753619490315,-460.0,0.00021917,2]
[375297165,1753619490325,-460.0,0.00021917,2]
[375297166,1753619490334,-2515.03,0.00021917,2]
[375297167,1753619490343,-460.0,0.00021917,2]
[375297168,1753619490354,-460.0,0.00021917,2]
[375297169,1753619490364,-460.0,0.00021917,2]
[375297170,1753619490374,-479.16,0.00021917,2]
[375297171,1753619490383,-3250.61,0.00021917,2]
[375297172,1753619490393,-460.0,0.00021917,2]
[375297173,1753619490403,-460.0,0.00021917,2]
[375297174,1753619490413,-460.0,0.00021917,2]
[375297175,1753619490422,-813.85,0.00021917,2]
[375297176,1753619490432,-987.49,0.00021917,2]
[375297177,1753619490442,-460.0,0.00021917,2]
[375297178,1753619490453,-460.0,0.00021917,2]
[375297179,1753619490463,-460.0,0.00021917,2]
[375297180,1753619490474,-517.5,0.00021917,2]
[375297181,1753619490484,-500.0,0.00021917,2]
[375297182,1753619490493,-500.0,0.00021917,2]
[375297183,1753619490503,-500.0,0.00021917,2]
[375297184,1753619490512,-500.0,0.00021917,2]
[375297185,1753619490522,-500.0,0.00021917,2]
[375297186,1753619490531,-500.0,0.00021917,2]
[375297187,1753619490540,-500.0,0.00021917,2]
[375297188,1753619490550,-359.30961583,0.00021917,2]
[375297189,1753619490560,-460.0,0.00021917,2]
[375297190,1753619490570,-460.0,0.00021917,2]
[375297191,1753619490580,-460.97,0.00021917,2]
[375297192,1753619490589,-460.0,0.00021917,2]
[375297193,1753619490599,-460.0,0.00021917,2]
[375297194,1753619490609,-460.0,0.00021917,2]
[375297195,1753619490619,-880.08,0.00021917,2]
[375297196,1753619490629,-460.0,0.00021917,2]
[375297197,1753619490638,-1217.33,0.00021917,2]
[375297198,1753619490648,-460.0,0.00021917,2]
[375297199,1753619490658,-1796.36,0.00021917,2]
[375297200,1753619490668,-460.0,0.00021917,2]
[375297201,1753619490678,-1416.23,0.00021917,2]
[375297202,1753619490688,-498.6,0.00021917,2]
[375297203,1753619490698,-485.82,0.00021917,2]
[375297204,1753619490708,-2199.13,0.00021917,2]
[375297205,1753619490717,-652.54,0.00021917,2]
[375297206,1753619490727,-460.0,0.00021917,2]
[375297207,1753619490737,-460.0,0.00021917,2]
[375297208,1753619490747,-460.0,0.00021917,2]
[375297209,1753619490757,-460.0,0.00021917,2]
[375297210,1753619490766,-542.11,0.00021917,2]
[375297211,1753619490776,-460.0,0.00021917,2]
[375297212,1753619490786,-704.98,0.00021917,2]
[375297213,1753619490796,-841.61,0.00021917,2]
[375297214,1753619490805,-460.0,0.00021917,2]
[375297215,1753619490816,-460.0,0.00021917,2]
[375297216,1753619490826,-460.0,0.00021917,2]
[375297217,1753619490836,-460.0,0.00021917,2]
[375297218,1753619490846,-856.84,0.00021917,2]
[375297219,1753619490856,-536.66,0.00021917,2]
[375297220,1753619490866,-460.0,0.00021917,2]
[375297221,1753619490876,-460.0,0.00021917,2]
[375297222,1753619490886,-2625.62,0.00021917,2]
[375297223,1753619490895,-642.17,0.00021917,2]
[375297224,1753619490905,-460.0,0.00021917,2]
[375297225,1753619490914,-460.0,0.00021917,2]
[375297226,1753619490923,-708.56,0.00021917,2]
[375297227,1753619490933,-460.0,0.00021917,2]
[375297228,1753619490943,-2552.96,0.00021917,2]
[375297229,1753619490953,-693.53,0.00021917,2]
[375297230,1753619490963,-614.5,0.00021917,2]
[375297231,1753619490973,-460.0,0.00021917,2]
[375297232,1753619490983,-460.0,0.00021917,2]
[375297233,1753619490993,-460.0,0.00021917,2]
[375297234,1753619491003,-774.82,0.00021917,2]
[375297235,1753619491013,-714.22,0.00021917,2]
[375297236,1753619491022,-460.0,0.00021917,2]
[375297237,1753619491032,-500.96,0.00021917,2]
[375297238,1753619491041,-476.88,0.00021917,2]
[375297239,1753619491051,-460.0,0.00021917,2]
[375297240,1753619491060,-460.0,0.00021917,2]
[375297241,1753619491070,-551.68,0.00021917,2]
[375297242,1753619491079,-460.0,0.00021917,2]
[375297243,1753619491089,-2325.49,0.00021917,2]
[375297244,1753619491099,-1372.59,0.00021917,2]
[375297245,1753619491109,-460.0,0.00021917,2]
[375297246,1753619491120,-870.88,0.00021917,2]
[375297247,1753619491130,-460.0,0.00021917,2]
[375297248,1753619491139,-472.58,0.00021917,2]
[375297249,1753619491148,-815.6,0.00021917,2]
[375297250,1753619491158,-460.0,0.00021917,2]
[375297251,1753619491167,-460.0,0.00021917,2]
[375297252,1753619491176,-460.0,0.00021917,2]
[375297253,1753619491185,-460.0,0.00021917,2]
[375297254,1753619491195,-460.0,0.00021917,2]
[375297255,1753619491205,-150.0,0.00021918,2]
[375297256,1753619491215,-150.60043876,0.00021918,2]
[375297257,1753619491224,-4088.1679559,0.00021937,2]
[375297258,1753619491233,-151.0,0.00021937,7]
[375297259,1753619491242,-151.0,0.00021937,7]
[375297260,1753619491251,-151.0,0.00021937,7]
[375297261,1753619491261,-151.0,0.00021937,7]
[375297262,1753619491270,-151.0,0.00021937,7]
[375297263,1753619491280,-460.0,0.00021944,2]
[375297264,1753619491289,-2284.11449037,0.00021969,6]
[375297265,1753619491302,-4239.43017027,0.00021992,2]
[375297266,1753619491311,-725.78,0.00022,7]
[375297267,1753619491320,-4428.73,0.00022,7]
[375297268,1753619491329,-26426.3,0.00022,2]
[375297269,1753619491339,-2587.49,0.00022,7]
[375297270,1753619491349,-151.600414,0.00022,7]
[375297271,1753619491359,-151.0,0.00022,7]
[375297272,1753619491369,-302.67,0.00022,2]
[375297273,1753619491380,-969.0,0.00022036,2]
[375297274,1753619491391,-421.197,0.00022036,2]
[375297275,1753619491400,-4396.28908657,0.00022047,2]
[375297276,1753619491411,-151.0,0.000221,5]
[375297277,1753619491421,-4558.95178277,0.00022102,2]
[375297278,1753619491431,-2284.11449037,0.00022141,6]
[375297279,1753619491441,-4727.63299873,0.00022157,2]
[375297280,1753619491451,-649.92621861,0.00022164,2]
[375297281,1753619491461,-1115.75524555,0.00022164,2]
[375297282,1753619491470,-2197.55022164,0.00022164,2]
[375297283,1753619491480,-360.64,0.00022185,2]
[375297284,1753619491489,-2495.82,0.00022191,2]
[375297285,1753619491498,-460.0,0.00022191,2]
[375297286,1753619491508,-460.0,0.00022191,2]
[375297287,1753619491517,-1544.51,0.00022191,2]
[375297288,1753619491527,-460.0,0.00022191,2]
[375297289,1753619491536,-460.0,0.00022191,2]
[375297290,1753619491546,-460.0,0.00022191,2]
[375297291,1753619491555,-460.0,0.00022191,2]
[375297292,1753619491565,-460.0,0.00022191,2]
[375297293,1753619491574,-460.0,0.00022191,2]
[375297294,1753619491583,-460.0,0.00022191,2]
[375297295,1753619491593,-506.11,0.00022191,2]
[375297296,1753619491603,-460.0,0.00022191,2]
[375297297,1753619491613,-460.0,0.00022191,2]
[375297298,1753619491623,-460.0,0.00022191,2]
[375297299,1753619491633,-460.0,0.00022191,2]
[375297300,1753619491643,-460.0,0.00022191,2]
[375297301,1753619491653,-486.26,0.00022191,2]
[375297302,1753619491662,-252.30153891,0.00022191,2]
[375297303,1753619491672,-460.0,0.00022191,2]
[375297304,1753619491682,-460.0,0.00022191,2]
[375297305,1753619491692,-460.0,0.00022191,2]
[375297306,1753619491703,-535.76,0.00022191,2]
[375297307,1753619491715,-460.0,0.00022191,2]
[375297308,1753619491726,-1844.66,0.00022191,2]
[375297309,1753619491735,-460.0,0.00022191,2]
[375297310,1753619491746,-460.0,0.00022191,2]
[375297311,1753619491756,-233.33214494,0.00022191,2]
[375297312,1753619491765,-471.24816989,0.00022191,2]
[375297313,1753619491776,-460.0,0.00022191,2]
[375297314,1753619491785,-460.0,0.00022191,2]
[375297315,1753619491794,-460.0,0.00022191,2]
[375297316,1753619491804,-719.78,0.00022191,2]
[375297317,1753619491815,-460.0,0.00022191,2]
[375297318,1753619491824,-460.0,0.00022191,2]
[375297319,1753619491834,-460.0,0.00022191,2]
[375297320,1753619491844,-460.0,0.00022191,2]
[375297321,1753619491853,-460.0,0.00022191,2]
[375297322,1753619491863,-460.0,0.00022191,2]
[375297323,1753619491872,-460.0,0.00022191,2]
[375297324,1753619491881,-2003.47,0.00022191,2]
[375297325,1753619491891,-502.24506035,0.00022191,2]
[375297326,1753619491900,-460.0,0.00022191,2]
[375297327,1753619491909,-460.0,0.00022191,2]
[375297328,1753619491919,-748.74,0.00022191,2]
[375297329,1753619491928,-460.0,0.00022191,2]
[375297330,1753619491938,-478.39192347,0.00022191,2]
[375297331,1753619491947,-460.0,0.00022191,2]
[375297332,1753619491957,-835.18,0.00022191,2]
[375297333,1753619491966,-460.0,0.00022191,2]
[375297334,1753619491976,-460.0,0.00022191,2]
[375297335,1753619491986,-488.36113663,0.00022191,2]
[375297336,1753619491995,-460.0,0.00022191,2]
[375297337,1753619492005,-460.0,0.00022191,2]
[375297338,1753619492014,-1433.49,0.00022191,2]
[375297339,1753619492024,-460.0,0.00022191,2]
[375297340,1753619492033,-460.0,0.00022191,2]
[375297341,1753619492188,-514.36,0.00022191,2]
[375297342,1753619492199,-460.0,0.00022191,2]
[375297343,1753619492210,-933.19,0.00022191,2]
[375297344,1753619492219,-460.0,0.00022191,2]
[375297345,1753619492229,-460.0,0.00022191,2]
[375297346,1753619492239,-556.03,0.00022191,2]
[375297347,1753619492248,-460.0,0.00022191,2]
[375297348,1753619492257,-460.0,0.00022191,2]
[375297349,1753619492267,-460.0,0.00022191,2]
[375297350,1753619492276,-460.0,0.00022191,2]
[375297351,1753619492286,-460.0,0.00022191,2]
[375297352,1753619492296,-460.0,0.00022191,2]
[375297353,1753619492308,-460.0,0.00022191,2]
[375297354,1753619492316,-460.0,0.00022191,2]
[375297355,1753619492326,-422.72898536,0.00022191,2]
[375297356,1753619492336,-460.0,0.00022191,2]
[375297357,1753619492346,-460.0,0.00022191,2]
[375297358,1753619492355,-460.0,0.00022191,2]
[375297359,1753619492365,-469.7,0.00022191,2]
[375297360,1753619492375,-460.0,0.00022191,2]
[375297361,1753619492384,-460.0,0.00022191,2]
[375297362,1753619492394,-460.0,0.00022191,2]
[375297363,1753619492403,-460.0,0.00022191,2]
[375297364,1753619492412,-460.0,0.00022191,2]
[375297365,1753619492421,-460.0,0.00022191,2]
[375297366,1753619492431,-592.80795498,0.00022191,2]
[375297367,1753619492440,-537.44,0.00022191,2]
[375297368,1753619492450,-502.912933,0.00022191,2]
[375297369,1753619492460,-460.0,0.00022191,2]
[375297370,1753619492470,-460.0,0.00022191,2]
[375297371,1753619492478,-460.0,0.00022191,2]
[375297372,1753619492487,-460.0,0.00022191,2]
[375297373,1753619492497,-460.0,0.00022191,2]
[375297374,1753619492506,-460.0,0.00022191,2]
[375297375,1753619492516,-509.47,0.00022191,2]
[375297376,1753619492526,-895.06,0.00022191,2]
[375297377,1753619492535,-1961.5,0.00022191,2]
[375297378,1753619492544,-460.0,0.00022191,2]
[375297379,1753619492553,-460.0,0.00022191,2]
[375297380,1753619492562,-460.0,0.00022191,2]
[375297381,1753619492572,-2239.97,0.00022191,2]
[375297382,1753619492581,-494.25,0.00022191,2]
[375297383,1753619492590,-477.09,0.00022191,2]
[375297384,1753619492599,-279.36453861,0.00022191,2]
[375297385,1753619492608,-460.0,0.00022191,2]
[375297386,1753619492617,-460.0,0.00022191,2]
[375297387,1753619492626,-603.71,0.00022191,2]
[375297388,1753619492636,-534.47,0.00022191,2]
[375297389,1753619492645,-752.16,0.00022191,2]
[375297390,1753619492655,-460.0,0.00022191,2]
[375297391,1753619492665,-460.0,0.00022191,2]
[375297392,1753619492674,-451.6223696,0.00022191,2]
[375297393,1753619492683,-4106.11,0.00022191,2]
[375297394,1753619492692,-460.0,0.00022191,2]
[375297395,1753619492704,-460.0,0.00022191,2]
[375297396,1753619492714,-509.31,0.00022191,2]
[375297397,1753619492724,-460.0,0.00022191,2]
[375297398,1753619492733,-460.0,0.00022191,2]
[375297399,1753619492743,-1164.72,0.00022191,2]
[375297400,1753619492752,-460.0,0.00022191,2]
[375297401,1753619492761,-460.0,0.00022191,2]
[375297402,1753619492771,-460.0,0.00022191,2]
[375297403,1753619492781,-911.34,0.00022191,2]
[375297404,1753619492790,-770.95,0.00022191,2]
[375297405,1753619492799,-802.67,0.00022191,2]
[375297406,1753619492809,-460.0,0.00022191,2]
[375297407,1753619492818,-460.0,0.00022191,2]
[375297408,1753619492828,-460.0,0.00022191,2]
[375297409,1753619492838,-577.86,0.00022191,2]
[375297410,1753619492848,-460.0,0.00022191,2]
[375297411,1753619492858,-460.0,0.00022191,2]
[375297412,1753619492867,-460.0,0.00022191,2]
[375297413,1753619492877,-620.79,0.00022191,2]
[375297414,1753619492886,-460.0,0.00022191,2]
[375297415,1753619492895,-460.0,0.00022191,2]
[375297416,1753619492905,-460.0,0.00022191,2]
[375297417,1753619492915,-712.03,0.00022191,2]
[375297418,1753619492924,-460.0,0.00022191,2]
[375297419,1753619492934,-460.0,0.00022191,2]
[375297420,1753619492943,-2515.03,0.00022191,2]
[375297421,1753619492954,-460.0,0.00022191,2]
[375297422,1753619492963,-554.46401392,0.00022191,2]
[375297423,1753619492973,-460.0,0.00022191,2]
[375297424,1753619492983,-479.16,0.00022191,2]
[375297425,1753619492992,-3250.61,0.00022191,2]
[375297426,1753619493002,-460.0,0.00022191,2]
[375297427,1753619493011,-460.0,0.00022191,2]
[375297428,1753619493021,-460.0,0.00022191,2]
[375297429,1753619493031,-813.85,0.00022191,2]
[375297430,1753619493040,-987.49,0.00022191,2]
[375297431,1753619493050,-460.0,0.00022191,2]
[375297432,1753619493059,-460.0,0.00022191,2]
[375297433,1753619493069,-460.0,0.00022191,2]
[375297434,1753619493078,-517.5,0.00022191,2]
[375297435,1753619493087,-460.0,0.00022191,2]
[375297436,1753619493097,-460.0,0.00022191,2]
[375297437,1753619493107,-460.97,0.00022191,2]
[375297438,1753619493116,-460.0,0.00022191,2]
[375297439,1753619493126,-460.0,0.00022191,2]
[375297440,1753619493136,-460.0,0.00022191,2]
[375297441,1753619493146,-880.08,0.00022191,2]
[375297442,1753619493156,-460.0,0.00022191,2]
[375297443,1753619493165,-1217.33,0.00022191,2]
[375297444,1753619493175,-460.0,0.00022191,2]
[375297445,1753619493185,-1796.36,0.00022191,2]
[375297446,1753619493194,-460.0,0.00022191,2]
[375297447,1753619493204,-1416.23,0.00022191,2]
[375297448,1753619493214,-498.6,0.00022191,2]
[375297449,1753619493223,-485.82,0.00022191,2]
[375297450,1753619493233,-2199.13,0.00022191,2]
[375297451,1753619493242,-652.54,0.00022191,2]
[375297452,1753619493252,-460.0,0.00022191,2]
[375297453,1753619493262,-460.0,0.00022191,2]
[375297454,1753619493271,-460.0,0.00022191,2]
[375297455,1753619493281,-460.0,0.00022191,2]
[375297456,1753619493291,-542.11,0.00022191,2]
[375297457,1753619493304,-460.0,0.00022191,2]
[375297458,1753619493314,-704.98,0.00022191,2]
[375297459,1753619493323,-841.61,0.00022191,2]
[375297460,1753619493333,-460.0,0.00022191,2]
[375297461,1753619493343,-460.0,0.00022191,2]
[375297462,1753619493352,-460.0,0.00022191,2]
[375297463,1753619493362,-460.0,0.00022191,2]
[375297464,1753619493372,-856.84,0.00022191,2]
[375297465,1753619493383,-536.66,0.00022191,2]
[375297466,1753619493392,-460.0,0.00022191,2]
[375297467,1753619493402,-460.0,0.00022191,2]
[375297468,1753619493412,-2625.62,0.00022191,2]
[375297469,1753619493421,-642.17,0.00022191,2]
[375297470,1753619493430,-460.0,0.00022191,2]
[375297471,1753619493439,-460.0,0.00022191,2]
[375297472,1753619493450,-708.56,0.00022191,2]
[375297473,1753619493460,-460.0,0.00022191,2]
[375297474,1753619493469,-2552.96,0.00022191,2]
[375297475,1753619493479,-693.53,0.00022191,2]
[375297476,1753619493489,-614.5,0.00022191,2]
[375297477,1753619493499,-460.0,0.00022191,2]
[375297478,1753619493509,-460.0,0.00022191,2]
[375297479,1753619493518,-774.82,0.00022191,2]
[375297480,1753619493528,-714.22,0.00022191,2]
[375297481,1753619493538,-469.63598883,0.00022191,2]
[375297482,1753619493547,-460.0,0.00022191,2]
[375297483,1753619493556,-500.96,0.00022191,2]
[375297484,1753619493566,-476.88,0.00022191,2]
[375297485,1753619493575,-460.0,0.00022191,2]
[375297486,1753619493584,-460.0,0.00022191,2]
[375297487,1753619493593,-551.68,0.00022191,2]
[375297488,1753619493602,-460.0,0.00022191,2]
[375297489,1753619493612,-2325.49,0.00022191,2]
[375297490,1753619493622,-1372.59,0.00022191,2]
[375297491,1753619493631,-460.0,0.00022191,2]
[375297492,1753619493641,-870.88,0.00022191,2]
[375297493,1753619493650,-460.0,0.00022191,2]
[375297494,1753619493659,-472.58,0.00022191,2]
[375297495,1753619493669,-815.6,0.00022191,2]
[375297496,1753619493678,-460.0,0.00022191,2]
[375297497,1753619493687,-460.0,0.00022191,2]
[375297498,1753619493697,-460.0,0.00022191,2]
[375297499,1753619493707,-460.0,0.00022191,2]
[375297500,1753619493717,-587.0,0.00022197,2]
[375297501,1753619493726,-4902.55541968,0.00022212,2]
[375297502,1753619493735,-1158.08855282,0.00022267,2]
[375297503,1753619493745,-1109.8,0.00022281,5]
[375297504,1753619493755,-2284.11449037,0.00022314,7]
[375297505,1753619493765,-25000.0,0.00022375,2]
[375297506,1753619493775,-160.0,0.0002239,7]
[375297507,1753619493785,-165.59307071,0.000224,3]
[375297508,1753619493795,-600.0,0.00022412,2]
[375297509,1753619493804,-2495.82,0.00022465,2]
[375297510,1753619493813,-460.0,0.00022465,2]
[375297511,1753619493823,-460.0,0.00022465,2]
[375297512,1753619493833,-1544.51,0.00022465,2]
[375297513,1753619493842,-460.0,0.00022465,2]
[375297514,1753619493852,-460.0,0.00022465,2]
[375297515,1753619493861,-460.0,0.00022465,2]
[375297516,1753619493871,-460.0,0.00022465,2]
[375297517,1753619493880,-460.0,0.00022465,2]
[375297518,1753619493890,-460.0,0.00022465,2]
[375297519,1753619493899,-506.11,0.00022465,2]
[375297520,1753619493909,-460.0,0.00022465,2]
[375297521,1753619493919,-460.0,0.00022465,2]
[375297522,1753619493928,-460.0,0.00022465,2]
[375297523,1753619493937,-460.0,0.00022465,2]
[375297524,1753619493947,-486.26,0.00022465,2]
[375297525,1753619493957,-460.0,0.00022465,2]
[375297526,1753619493966,-460.0,0.00022465,2]
[375297527,1753619493976,-460.0,0.00022465,2]
[375297528,1753619493985,-535.76,0.00022465,2]
[375297529,1753619493995,-460.0,0.00022465,2]
[375297530,1753619494004,-1844.66,0.00022465,2]
[375297531,1753619494014,-460.0,0.00022465,2]
[375297532,1753619494023,-460.0,0.00022465,2]
[375297533,1753619494032,-460.0,0.00022465,2]
[375297534,1753619494041,-460.0,0.00022465,2]
[375297535,1753619494050,-460.0,0.00022465,2]
[375297536,1753619494059,-719.78,0.00022465,2]
[375297537,1753619494069,-460.0,0.00022465,2]
[375297538,1753619494079,-460.0,0.00022465,2]
[375297539,1753619494088,-460.0,0.00022465,2]
[375297540,1753619494097,-460.0,0.00022465,2]
[375297541,1753619494107,-463.07701952,0.00022465,2]
[375297542,1753619494117,-460.0,0.00022465,2]
[375297543,1753619494126,-2003.47,0.00022465,2]
[375297544,1753619494135,-460.0,0.00022465,2]
[375297545,1753619494145,-748.74,0.00022465,2]
[375297546,1753619494154,-460.0,0.00022465,2]
[375297547,1753619494164,-460.0,0.00022465,2]
[375297548,1753619494174,-835.18,0.00022465,2]
[375297549,1753619494184,-471.60251607,0.00022465,2]
[375297550,1753619494193,-460.0,0.00022465,2]
[375297551,1753619494203,-460.0,0.00022465,2]
[375297552,1753619494212,-460.0,0.00022465,2]
[375297553,1753619494222,-1433.49,0.00022465,2]
[375297554,1753619494231,-460.0,0.00022465,2]
[375297555,1753619494241,-460.0,0.00022465,2]
[375297556,1753619494250,-514.36,0.00022465,2]
[375297557,1753619494259,-460.0,0.00022465,2]
[375297558,1753619494268,-933.19,0.00022465,2]
[375297559,1753619494278,-460.0,0.00022465,2]
[375297560,1753619494287,-460.0,0.00022465,2]
[375297561,1753619494297,-556.03,0.00022465,2]
[375297562,1753619494309,-460.0,0.00022465,2]
[375297563,1753619494318,-460.0,0.00022465,2]
[375297564,1753619494328,-460.0,0.00022465,2]
[375297565,1753619494338,-460.0,0.00022465,2]
[375297566,1753619494349,-460.0,0.00022465,2]
[375297567,1753619494358,-460.0,0.00022465,2]
[375297568,1753619494368,-460.0,0.00022465,2]
[375297569,1753619494377,-460.0,0.00022465,2]
[375297570,1753619494387,-460.0,0.00022465,2]
[375297571,1753619494396,-460.0,0.00022465,2]
[375297572,1753619494405,-469.7,0.00022465,2]
[375297573,1753619494414,-460.0,0.00022465,2]
[375297574,1753619494423,-460.0,0.00022465,2]
[375297575,1753619494432,-208.77836746,0.00022465,2]
[375297576,1753619494441,-460.0,0.00022465,2]
[375297577,1753619494451,-460.0,0.00022465,2]
[375297578,1753619494460,-537.44,0.00022465,2]
[375297579,1753619494470,-460.0,0.00022465,2]
[375297580,1753619494479,-460.0,0.00022465,2]
[375297581,1753619494489,-498.3356915,0.00022465,2]
[375297582,1753619494498,-460.0,0.00022465,2]
[375297583,1753619494508,-460.0,0.00022465,2]
[375297584,1753619494517,-151.0,0.00022465,7]
[375297585,1753619494526,-460.0,0.00022465,2]
[375297586,1753619494536,-509.47,0.00022465,2]
[375297587,1753619494545,-895.06,0.00022465,2]
[375297588,1753619494554,-151.0,0.00022465,7]
[375297589,1753619494563,-151.0,0.00022465,7]
[375297590,1753619494572,-1961.5,0.00022465,2]
[375297591,1753619494581,-460.0,0.00022465,2]
[375297592,1753619494590,-460.0,0.00022465,2]
[375297593,1753619494599,-460.0,0.00022465,2]
[375297594,1753619494609,-2239.97,0.00022465,2]
[375297595,1753619494618,-494.25,0.00022465,2]
[375297596,1753619494627,-477.09,0.00022465,2]
[375297597,1753619494637,-460.0,0.00022465,2]
[375297598,1753619494646,-1683.47,0.00022465,2]
[375297599,1753619494655,-460.0,0.00022465,2]
[375297600,1753619494665,-603.71,0.00022465,2]
[375297601,1753619494674,-151.0,0.00022465,7]
[375297602,1753619494684,-534.47,0.00022465,2]
[375297603,1753619494693,-752.16,0.00022465,2]
[375297604,1753619494703,-233.774696,0.00022465,7]
[375297605,1753619494876,-460.0,0.00022465,2]
[375297606,1753619494887,-460.0,0.00022465,2]
[375297607,1753619494896,-4106.11,0.00022465,2]
[375297608,1753619494906,-460.0,0.00022465,2]
[375297609,1753619494916,-288.01316,0.00022465,2]
[375297610,1753619494925,-509.31,0.00022465,2]
[375297611,1753619494935,-460.0,0.00022465,2]
[375297612,1753619494944,-460.0,0.00022465,2]
[375297613,1753619494953,-1164.72,0.00022465,2]
[375297614,1753619494963,-460.0,0.00022465,2]
[375297615,1753619494972,-460.0,0.00022465,2]
[375297616,1753619494981,-460.0,0.00022465,2]
[375297617,1753619494990,-911.34,0.00022465,2]
[375297618,1753619494999,-770.95,0.00022465,2]
[375297619,1753619495009,-802.67,0.00022465,2]
[375297620,1753619495019,-460.0,0.00022465,2]
[375297621,1753619495028,-460.0,0.00022465,2]
[375297622,1753619495039,-460.0,0.00022465,2]
[375297623,1753619495048,-577.86,0.00022465,2]
[375297624,1753619495058,-460.0,0.00022465,2]
[375297625,1753619495068,-460.0,0.00022465,2]
[375297626,1753619495077,-460.0,0.00022465,2]
[375297627,1753619495087,-620.79,0.00022465,2]
[375297628,1753619495096,-460.0,0.00022465,2]
[375297629,1753619495106,-460.0,0.00022465,2]